bitfinex/quotes_SOLUSD_20240702
["timestamp","ask_amount","ask_price","bid_price","bid_amount"]
[1719927432216,6.6703,149.92,149.78,6.309]
[1719927432504,6.86371277,149.95,149.8,15.1005]
[1719927432683,6.6707,149.91,149.8,15.1005]
[1719927433102,6.6711,149.9,149.8,15.1005]
[1719927434297,6.86371277,149.95,149.81,45.0]
[1719927434503,6.6685,149.96,149.82,21.7095]
[1719927434792,0.8554862,149.99,149.83,65.0]
[1719927435207,6.6689,149.95,149.83,65.0]
[1719927435396,0.8554862,149.99,149.85,16.6558]
[1719927435777,6.668,149.97,149.85,16.6558]
[1719927436295,6.668,149.97,149.86,45.0]
[1719927436609,0.8554862,149.99,149.86,45.0]
[1719927436986,6.6676,149.98,149.86,45.0]
[1719927437180,0.8554862,149.99,149.86,45.0]
[1719927437399,0.8554862,149.99,149.88,6.2655]
[1719927437590,0.8554862,149.99,149.89,16.1944]
[1719927438191,0.8554862,149.99,149.89,116.1944]
[1719927438390,13.736656,150.06,149.89,116.1944]
[1719927438391,6.664,150.06,149.91,16.1944]
[1719927438588,6.6645,150.05,149.92,20.0]
[1719927438787,6.664,150.06,149.93,6.6594]
[1719927439004,6.88044619,150.09,149.94,65.0]
[1719927439179,6.6636,150.07,149.94,65.0]
[1719927439382,6.664,150.06,149.94,65.0]
[1719927439585,6.6636,150.07,149.94,65.0]
[1719927439802,13.54324619,150.09,149.95,15.3261]
[1719927439991,13.54324619,150.09,149.97,6.1854]
[1719927439992,6.6628,150.09,149.97,6.1854]
[1719927440198,17.5069862,150.14,149.98,45.0]
[1719927440199,6.6623,150.1,149.98,45.0]
[1719927440402,17.5069862,150.14,149.99,15.3261]
[1719927440403,6.6621,150.11,149.99,15.3261]
[1719927440592,0.8554862,150.14,149.99,15.3261]
[1719927440999,6.6618,150.11,149.99,15.3261]
[1719927441206,6.6624,150.1,149.99,15.3261]
[1719927441600,6.6618,150.11,150.0,45.0]
[1719927441788,6.6609,150.13,150.01,7.35188626]
[1719927442101,6.6609,150.13,150.02,20.0]
[1719927442295,0.8554862,150.14,150.03,15.1075]
[1719927442495,0.8554862,150.14,150.04,20.0]
[1719927444113,0.8554862,150.14,150.05,45.0]
[1719927446219,6.662,150.11,150.03,15.1075]
[1719927446511,6.6627,150.09,150.03,15.1075]
[1719927446727,6.6631,150.08,150.03,15.1075]
[1719927446916,6.6622,150.1,150.03,15.1075]
[1719927447227,6.6624,150.1,150.03,15.1075]
[1719927447435,6.6617,150.12,150.03,15.1075]
[1719927447723,6.6623,150.1,150.03,15.1075]
[1719927447937,6.6627,150.09,150.03,15.1075]
[1719927448101,16.654,150.12,150.03,15.1075]
[1719927448301,6.6636,150.07,150.03,15.1075]
[1719927448535,6.6632,150.08,150.03,15.1075]
[1719927448833,6.6636,150.07,150.03,15.1075]
[1719927449007,6.6631,150.08,150.03,15.1075]
[1719927449331,6.6627,150.09,150.03,15.1075]
[1719927449501,6.6623,150.1,150.03,15.1075]
[1719927449832,6.6618,150.11,150.03,15.1075]
[1719927450123,6.6609,150.13,150.03,15.1075]
[1719927450623,0.8554862,150.14,150.04,1.33244012]
[1719927450808,0.8554862,150.14,150.05,1.33244406]
[1719927451125,0.8554862,150.14,150.04,20.0]
[1719927451327,0.8554862,150.14,150.03,15.1075]
[1719927451496,17.5073862,150.14,150.03,15.1075]
[1719927451704,6.6622,150.1,150.03,15.1075]
[1719927452040,6.6617,150.11,150.03,15.1075]
[1719927452229,7.5158862,150.14,150.03,15.1075]
[1719927452424,7.5158862,150.14,150.04,45.0]
[1719927452638,0.8554862,150.14,150.04,45.0]
[1719927453106,0.8554862,150.14,150.05,1.33240702]
[1719927453710,6.6609,150.13,150.04,45.0]
[1719927453918,6.6625,150.1,150.04,45.0]
[1719927454137,17.5071862,150.14,150.03,15.1075]
[1719927454531,20.0,150.13,150.03,15.1075]
[1719927454725,6.6623,150.1,150.03,15.1075]
[1719927454928,6.6631,150.09,150.03,15.1075]
[1719927455130,6.6639,150.07,150.03,15.1075]
[1719927455330,16.655,150.11,150.03,15.1075]
[1719927455535,6.6631,150.08,150.03,15.1075]
[1719927455764,6.6636,150.07,150.03,15.1075]
[1719927456245,6.6631,150.08,150.03,15.1075]
[1719927456550,7.72473148,150.14,150.03,15.1075]
[1719927456755,20.0,150.13,150.03,15.1075]
[1719927456958,6.6629,150.09,150.03,15.1075]
[1719927457844,36.6527,150.13,150.03,15.1075]
[1719927458657,16.6557,150.1,150.01,6.0192]
[1719927459232,6.6641,150.06,150.01,6.0192]
[1719927459555,72.07,150.12,150.01,6.0192]
[1719927459750,20.0,150.11,150.01,6.0192]
[1719927459956,6.663,150.09,150.01,6.0192]
[1719927460140,6.6622,150.1,150.01,6.0192]
[1719927460334,6.661,150.13,150.01,6.0192]
[1719927460567,49.9397,150.19,150.01,6.0192]
[1719927460774,7.5159862,150.14,150.02,65.0]
[1719927461641,0.8554862,150.14,150.03,16.1586]
[1719927461843,0.8554862,150.14,150.04,45.0]
[1719927462065,0.8554862,150.14,150.05,20.0]
[1719927462264,0.8554862,150.14,150.06,45.0]
[1719927464354,7.5159862,150.14,150.06,45.0]
[1719927464745,0.8554862,150.14,150.05,20.0]
[1719927464955,6.6616,150.12,150.04,20.0]
[1719927465253,6.6624,150.1,150.04,20.0]
[1719927465476,6.6618,150.11,150.03,16.1586]
[1719927465673,16.6523,150.13,150.03,16.1586]
[1719927465850,20.0,150.12,150.03,16.1586]
[1719927466049,16.6574,150.09,149.98,15.3713]
[1719927466273,20.0,150.12,149.98,15.3713]
[1719927466773,6.6626,150.1,149.98,15.3713]
[1719927466971,45.0,150.11,149.98,15.3713]
[1719927467175,6.6634,150.08,149.98,15.3713]
[1719927467391,6.6626,150.1,149.98,15.3713]
[1719927467687,6.6618,150.11,149.99,45.0]
[1719927467867,6.6619,150.11,149.99,45.0]
[1719927468178,20.0,150.12,149.99,45.0]
[1719927468179,26.6614,150.12,149.99,45.0]
[1719927468360,20.0,150.12,149.99,45.0]
[1719927468682,16.6542,150.12,149.99,45.0]
[1719927468854,6.6634,150.08,149.99,45.0]
[1719927469173,6.6639,150.07,149.98,15.3713]
[1719927469870,6.6631,150.08,149.98,15.3713]
[1719927470045,6.6627,150.09,149.98,15.3713]
[1719927470243,6.6627,150.09,149.99,45.0]
[1719927470439,16.6559,150.1,149.98,15.3713]
[1719927470645,20.0,150.11,149.99,45.0]
[1719927470863,6.6623,150.1,149.99,45.0]
[1719927471074,20.0,150.13,149.99,45.0]
[1719927471246,34.2407862,150.14,149.99,45.0]
[1719927471247,7.1707862,150.14,150.0,20.0]
[1719927471446,6.6614,150.12,150.0,20.0]
[1719927471986,6.6618,150.11,150.0,20.0]
[1719927472182,6.6618,150.11,150.01,45.0]
[1719927472389,6.6614,150.12,150.01,45.0]
[1719927472543,30.69058715,150.14,150.0,20.0]
[1719927472749,6.6617,150.12,150.01,45.0]
[1719927472988,6.6617,150.12,150.02,1.33267827]
[1719927473169,6.6617,150.12,150.0,45.0]
[1719927473670,26.6609,150.13,150.0,45.0]
[1719927473887,7.72378715,150.14,150.02,6.4071]
[1719927473888,0.8554862,150.14,150.02,6.4071]
[1719927474064,0.8554862,150.14,150.03,65.0]
[1719927474252,0.8554862,150.14,150.04,15.7738]
[1719927474575,0.8554862,150.14,150.05,20.0]
[1719927474786,0.8554862,150.14,150.05,65.0]
[1719927475657,0.8554862,150.14,150.06,45.0]
[1719927478498,0.8554862,150.14,150.05,20.0]
[1719927478700,6.6609,150.13,150.05,20.0]
[1719927479099,7.5159862,150.14,150.05,20.0]
[1719927479313,0.8554862,150.14,150.05,20.0]
[1719927479509,6.6615,150.12,150.05,20.0]
[1719927479924,6.6618,150.11,150.04,15.7738]
[1719927480088,6.6613,150.12,150.04,15.7738]
[1719927480398,6.6626,150.1,150.04,15.7738]
[1719927480597,6.6619,150.11,150.04,15.7738]
[1719927480920,0.8554862,150.14,150.04,15.7738]
[1719927481598,0.8554862,150.14,150.05,20.0]
[1719927481797,0.8554862,150.14,150.05,65.0]
[1719927483289,0.8554862,150.14,150.07,6.3577]
[1719927483491,0.8554862,150.14,150.08,20.0]
[1719927484488,0.8554862,150.14,150.07,6.3577]
[1719927484691,0.8554862,150.14,150.08,45.0]
[1719927488016,0.8554862,150.14,150.09,20.0]
[1719927490307,0.8554862,150.14,150.1,45.0]
[1719927493814,0.8554862,150.14,150.11,16.6167]
[1719927494034,0.8554862,150.14,150.12,20.0]
[1719927495562,6.85853402,150.25,150.12,20.0]
[1719927495744,6.6563,150.24,150.12,20.0]
[1719927496043,42.6149,150.26,150.13,6.2873]
[1719927496044,6.6556,150.25,150.13,6.2873]
[1719927496339,6.6556,150.25,150.14,20.0]
[1719927496712,24.37068721,150.29,150.14,20.0]
[1719927496713,6.6543,150.28,150.16,16.6111]
[1719927496913,6.6547,150.27,150.17,20.0]
[1719927497440,7.5093862,150.29,150.17,20.0]
[1719927497940,0.8554862,150.29,150.18,6.1855]
[1719927498440,0.8554862,150.29,150.19,120.0]
[1719927498622,0.8554862,150.29,150.19,20.0]
[1719927498830,0.8554862,150.29,150.22,16.195]
[1719927499143,0.8554862,150.29,150.24,6.4448]
[1719927499349,0.3554862,150.29,150.24,6.4448]
[1719927499927,0.3554862,150.29,150.25,20.0]
[1719927500437,0.3554862,150.29,150.26,1.33032154]
[1719927500638,0.3554862,150.29,150.25,20.0]
[1719927501837,0.3554862,150.29,150.26,1.33020925]
[1719927502044,0.3554862,150.29,150.25,20.0]
[1719927502247,6.5056862,150.38,150.25,120.0]
[1719927502547,21.87006929,150.42,150.25,120.0]
[1719927502548,21.87006929,150.42,150.26,15.2465]
[1719927502726,6.6499,150.38,150.27,20.0]
[1719927503933,6.6504,150.37,150.27,20.0]
[1719927504325,6.6509,150.36,150.27,20.0]
[1719927504523,16.6226,150.4,150.27,20.0]
[1719927505727,6.6508,150.36,150.27,20.0]
[1719927505928,16.6226,150.4,150.27,20.0]
[1719927506148,21.87006929,150.42,150.27,20.0]
[1719927506149,6.6516,150.34,150.27,20.0]
[1719927506330,6.6512,150.35,150.27,20.0]
[1719927506649,45.0,150.39,150.26,15.2465]
[1719927506861,6.6513,150.35,150.26,15.2465]
[1719927507063,20.0,150.38,150.26,15.2465]
[1719927507245,6.6518,150.34,150.26,15.2465]
[1719927507448,6.6525,150.32,150.26,15.2465]
[1719927507760,6.6521,150.33,150.26,15.2465]
[1719927507965,6.652,150.33,150.26,15.2465]
[1719927508171,6.6512,150.35,150.26,15.2465]
[1719927508345,45.0,150.4,150.26,15.2465]
[1719927508546,6.6514,150.35,150.26,15.2465]
[1719927508751,6.6512,150.35,150.26,15.2465]
[1719927509168,6.6516,150.34,150.26,15.2465]
[1719927509343,6.6512,150.35,150.26,15.2465]
[1719927509865,6.6508,150.36,150.26,15.2465]
[1719927510044,29.46836637,150.42,150.27,20.0]
[1719927510248,6.65,150.38,150.27,21.33031468]
[1719927510763,6.6495,150.39,150.27,20.0]
[1719927510969,6.6494,150.39,150.27,20.0]
[1719927511447,6.6489,150.4,150.27,20.0]
[1719927511655,6.6486,150.41,150.27,20.0]
[1719927511973,22.8388,150.43,150.27,20.0]
[1719927512561,6.649,150.4,150.27,20.0]
[1719927512867,7.71763434,150.44,150.28,6.3539]
[1719927513052,26.6479,150.43,150.29,136.5995]
[1719927513249,6.6479,150.43,150.29,136.5995]
[1719927513663,6.6479,150.43,150.3,1.32974511]
[1719927514048,7.5026862,150.44,150.3,1.32974511]
[1719927514252,7.5026862,150.44,150.32,22.7834]
[1719927514253,0.8554862,150.44,150.32,22.7834]
[1719927514471,0.8554862,150.44,150.33,121.32945742]
[1719927515070,0.8554862,150.44,150.34,1.32936436]
[1719927515371,0.8554862,150.44,150.35,121.5316]
[1719927515549,0.8554862,150.44,150.36,20.0]
[1719927516953,0.8554862,150.44,150.37,101.32908127]
[1719927517267,6.6437,150.52,150.39,21.9406]
[1719927517570,6.87739184,150.55,150.43,100.0]
[1719927517772,16.5997,150.61,150.44,35.9974]
[1719927517950,23.47892128,150.61,150.44,35.9974]
[1719927518353,17.49699168,150.59,150.44,35.9974]
[1719927518576,17.49699168,150.59,150.45,1.32868751]
[1719927518747,16.6041,150.57,150.44,35.9974]
[1719927518956,6.6437,150.52,150.44,35.9974]
[1719927519364,6.6442,150.51,150.44,35.9974]
[1719927519562,16.6041,150.57,150.44,35.9974]
[1719927519768,6.6432,150.53,150.44,35.9974]
[1719927519976,16.6068,150.55,150.44,15.9974]
[1719927520176,6.6453,150.49,150.4,15.659]
[1719927520380,6.6444,150.51,150.41,20.0]
[1719927520682,16.6068,150.55,150.41,20.0]
[1719927520859,6.6441,150.51,150.41,20.0]
[1719927521059,30.68,150.56,150.41,20.0]
[1719927521259,6.6424,150.55,150.41,120.0]
[1719927521490,20.0,150.54,150.41,120.0]
[1719927521801,0.89499168,150.59,150.45,100.0]
[1719927522018,0.89499168,150.59,150.46,36.83337587]
[1719927522195,0.89499168,150.59,150.46,135.505]
[1719927522586,0.89499168,150.59,150.47,101.3282426]
[1719927522887,0.89499168,150.59,150.48,20.0]
[1719927523614,0.89499168,150.59,150.5,100.0]
[1719927524917,0.89499168,150.59,150.52,100.0]
[1719927525294,0.89499168,150.59,150.53,20.0]
[1719927526309,0.89499168,150.59,150.55,100.0]
[1719927526613,0.89499168,150.59,150.56,21.32753694]
[1719927526817,6.8695514,150.72,150.58,100.0]
[1719927527106,7.1224862,150.74,150.59,20.0]
[1719927527290,13.98805538,150.74,150.59,20.0]
[1719927527493,13.98805538,150.74,150.58,20.0]
[1719927527707,13.98805538,150.74,150.59,6.218]
[1719927527897,6.636,150.7,150.6,20.0]
[1719927528488,6.6348,150.73,150.6,20.0]
[1719927528719,6.6351,150.72,150.6,20.0]
[1719927528894,0.8554862,150.74,150.62,16.5231]
[1719927529103,0.8554862,150.74,150.64,6.1963]
[1719927529288,0.8554862,150.74,150.64,106.1963]
[1719927529490,0.8554862,150.74,150.65,20.0]
[1719927530199,0.8554862,150.74,150.67,100.0]
[1719927530390,6.629,150.86,150.74,22.5499]
[1719927530591,6.6299,150.83,150.74,22.5499]
[1719927530790,6.6299,150.83,150.75,20.0]
[1719927530989,6.6299,150.83,150.74,22.5499]
[1719927530990,16.5736,150.85,150.74,22.5499]
[1719927531202,6.6317,150.79,150.74,22.5499]
[1719927531409,30.68,150.87,150.68,22.5499]
[1719927531410,16.5756,150.83,150.68,22.5499]
[1719927531717,6.6322,150.78,150.69,1.32663616]
[1719927532013,6.6322,150.78,150.68,22.5499]
[1719927532014,6.6323,150.78,150.68,22.5499]
[1719927532222,16.8451372,150.83,150.69,20.0]
[1719927532530,16.8451372,150.83,150.68,22.5499]
[1719927532531,6.6338,150.75,150.68,22.5499]
[1719927532687,16.5778,150.81,150.68,22.5499]
[1719927533090,30.68,150.75,150.6,6.0003]
[1719927533288,6.6372,150.67,150.6,6.0003]
[1719927533491,6.638,150.65,150.6,6.0003]
[1719927533711,16.5899,150.7,150.6,6.0003]
[1719927533922,30.68,150.75,150.6,6.0003]
[1719927533923,37.18832485,150.75,150.6,6.0003]
[1719927534118,33.1619,150.78,150.6,6.0003]
[1719927534322,6.6362,150.69,150.6,6.0003]
[1719927534905,6.6359,150.7,150.61,1.32730916]
[1719927535111,16.5819,150.77,150.61,1.32730916]
[1719927535317,6.50832485,150.78,150.62,101.32693968]
[1719927535516,50.68,150.8,150.64,100.0]
[1719927535823,20.0,150.8,150.65,15.5726]
[1719927536021,16.5777,150.81,150.66,20.0]
[1719927536223,6.6325,150.78,150.66,20.0]
[1719927536413,0.2695372,150.83,150.68,6.4786]
[1719927536717,0.2695372,150.83,150.69,21.32631712]
[1719927537030,0.2695372,150.83,150.7,1.32627924]
[1719927537320,6.6309,150.81,150.69,20.0]
[1719927537611,6.6313,150.8,150.69,120.0]
[1719927537816,6.6307,150.82,150.7,1.32628927]
[1719927538022,6.8995372,150.83,150.71,1.32617259]
[1719927538393,6.6305,150.82,150.71,1.32617259]
[1719927538691,6.8995372,150.83,150.72,15.2325]
[1719927538892,6.8995372,150.83,150.73,21.32612895]
[1719927539417,6.6321,150.79,150.73,20.0]
[1719927539624,6.6321,150.79,150.72,15.2325]
[1719927539625,6.6321,150.78,150.72,15.2325]
[1719927539794,6.6321,150.79,150.72,15.2325]
[1719927539994,0.2695372,150.83,150.73,1.32649255]
[1719927540196,0.2695372,150.83,150.72,15.2325]
[1719927540420,6.8995372,150.83,150.72,15.2325]
[1719927540595,0.2695372,150.83,150.73,20.0]
[1719927540810,6.6309,150.81,150.73,20.0]
[1719927541023,6.6318,150.79,150.74,1.32605908]
[1719927541209,6.6318,150.79,150.72,15.2325]
[1719927541596,0.2695372,150.83,150.72,15.2325]
[1719927541597,6.6312,150.81,150.72,15.2325]
[1719927541812,0.2695372,150.83,150.73,1.32621989]
[1719927542196,6.6317,150.79,150.74,1.32641438]
[1719927542398,6.6318,150.79,150.74,1.32641438]
[1719927542594,6.6327,150.77,150.72,15.2325]
[1719927542802,6.6334,150.76,150.72,15.2325]
[1719927543115,0.2695372,150.83,150.68,22.857]
[1719927543116,30.68,150.8,150.68,22.857]
[1719927543319,16.5808,150.78,150.68,22.857]
[1719927543523,6.6352,150.72,150.68,16.3784]
[1719927543716,6.6353,150.71,150.68,16.3784]
[1719927544025,6.6374,150.67,150.63,15.3392]
[1719927544198,6.6375,150.66,150.6,6.363]
[1719927544524,6.6365,150.68,150.6,6.363]
[1719927544715,30.68,150.72,150.6,6.363]
[1719927545124,6.6389,150.63,150.6,6.363]
[1719927545323,45.0,150.7,150.58,15.8157]
[1719927545513,16.5908,150.69,150.58,15.8157]
[1719927545831,6.6392,150.62,150.5,115.448]
[1719927546128,6.6393,150.62,150.5,115.448]
[1719927546300,6.6391,150.63,150.5,15.448]
[1719927546638,6.3481,150.68,150.51,1.3279215]
[1719927546837,20.0,150.67,150.52,100.0]
[1719927547132,6.6374,150.66,150.52,100.0]
[1719927547333,6.6374,150.66,150.53,20.0]
[1719927547510,43.84832485,150.72,150.54,101.32765543]
[1719927547713,6.6383,150.65,150.55,20.0]
[1719927547912,6.6384,150.64,150.53,20.0]
[1719927548219,16.5923,150.68,150.53,20.0]
[1719927548426,6.641,150.58,150.5,15.448]
[1719927548603,6.6405,150.59,150.5,15.448]
[1719927548802,6.6414,150.57,150.5,15.448]
[1719927549107,6.641,150.58,150.5,15.448]
[1719927549419,16.5986,150.62,150.5,15.448]
[1719927549616,6.6395,150.62,150.5,15.448]
[1719927549804,37.34,150.63,150.51,1.32811948]
[1719927550005,6.6387,150.63,150.5,115.448]
[1719927550204,6.6392,150.62,150.5,115.448]
[1719927550419,6.6379,150.65,150.51,1.32793308]
[1719927550725,6.6385,150.64,150.52,100.0]
[1719927550926,6.6385,150.64,150.5,15.448]
[1719927550927,6.6388,150.63,150.5,115.448]
[1719927551431,6.6382,150.65,150.52,100.0]
[1719927551604,6.638,150.65,150.53,20.0]
[1719927552031,6.6387,150.63,150.53,20.0]
[1719927552261,6.6394,150.62,150.51,20.0]
[1719927552857,16.593,150.67,150.52,100.0]
[1719927553049,6.90417787,150.68,150.53,20.0]
[1719927553356,6.6382,150.65,150.53,20.0]
[1719927553554,6.6382,150.65,150.54,100.0]
[1719927553743,6.6382,150.65,150.55,20.0]
[1719927553940,6.6382,150.65,150.53,20.0]
[1719927554127,6.6382,150.65,150.54,30.0]
[1719927554335,16.593,150.67,150.54,30.0]
[1719927554534,6.90417787,150.68,150.5,15.448]
[1719927554864,6.6415,150.57,150.5,15.448]
[1719927555160,16.5973,150.63,150.5,15.448]
[1719927555331,6.6413,150.58,150.5,15.448]
[1719927555528,6.6423,150.55,150.44,16.0193]
[1719927555742,6.5662,150.62,150.44,16.0193]
[1719927555743,6.6427,150.54,150.45,30.0]
[1719927555960,6.6422,150.56,150.44,16.0193]
[1719927556178,6.6423,150.55,150.44,16.0193]
[1719927556355,16.6052,150.56,150.44,16.0193]
[1719927556557,37.34,150.6,150.45,1.32877437]
[1719927556873,6.6429,150.54,150.44,16.0193]
[1719927557043,6.6423,150.55,150.45,1.32868824]
[1719927557243,6.6428,150.54,150.44,16.0193]
[1719927557439,16.6039,150.57,150.44,16.0193]
[1719927557666,6.6437,150.52,150.44,16.0193]
[1719927557967,6.6436,150.52,150.44,16.0193]
[1719927558183,16.6039,150.57,150.44,16.0193]
[1719927558474,37.34,150.6,150.46,100.0]
[1719927558766,6.6414,150.57,150.46,100.0]
[1719927558968,16.5995,150.61,150.46,100.0]
[1719927559186,16.6018,150.59,150.44,16.0193]
[1719927559353,6.6428,150.54,150.45,20.0]
[1719927559679,16.6039,150.57,150.45,20.0]
[1719927559976,16.6039,150.57,150.44,16.0193]
[1719927560272,6.5662,150.62,150.44,16.0193]
[1719927560477,36.5996,150.61,150.45,1.32870585]
[1719927560648,6.642,150.56,150.44,116.0193]
[1719927560851,6.6426,150.55,150.44,16.0193]
[1719927561079,6.6423,150.55,150.44,16.0193]
[1719927561244,16.6019,150.59,150.45,20.0]
[1719927561449,6.6436,150.52,150.44,16.0193]
[1719927561874,6.90554502,150.56,150.44,16.0193]
[1719927562071,6.6424,150.55,150.45,1.32873439]
[1719927562254,20.0,150.61,150.44,116.0193]
[1719927562255,6.6409,150.59,150.44,116.0193]
[1719927562453,6.90560839,150.6,150.44,116.0193]
[1719927562647,6.90560839,150.6,150.44,16.0193]
[1719927562852,6.6419,150.56,150.44,16.0193]
[1719927563068,6.6428,150.54,150.45,21.32849412]
[1719927563277,6.90560839,150.6,150.44,16.0193]
[1719927563487,6.6446,150.5,150.44,16.0193]
[1719927563780,16.6087,150.53,150.44,16.0193]
[1719927564279,6.6452,150.49,150.44,16.0193]
[1719927564450,16.6105,150.51,150.36,22.8508]
[1719927564649,16.6128,150.49,150.36,22.8508]
[1719927564855,45.0,150.52,150.37,1.32932406]
[1719927565066,45.0,150.52,150.36,122.8508]
[1719927565067,6.645,150.49,150.36,122.8508]
[1719927565263,45.0,150.52,150.36,122.8508]
[1719927565471,37.34,150.56,150.36,142.9008]
[1719927565690,37.34,150.56,150.35,100.8020742]
[1719927565691,16.6033,150.58,150.41,22.8508]
[1719927565972,16.6033,150.58,150.42,20.0]
[1719927565973,6.6424,150.55,150.42,20.0]
[1719927566185,6.6417,150.57,150.43,100.0]
[1719927566369,6.6417,150.57,150.44,20.0]
[1719927566568,6.6419,150.56,150.44,20.0]
[1719927566959,6.6432,150.53,150.44,20.0]
[1719927567276,6.6432,150.53,150.42,20.0]
[1719927568076,6.90560839,150.6,150.42,20.0]
[1719927568261,45.0,150.59,150.43,100.0]
[1719927568459,6.6419,150.56,150.44,20.0]
[1719927568990,6.6423,150.55,150.44,20.0]
[1719927569279,6.6428,150.54,150.44,20.0]
[1719927569581,16.6019,150.59,150.44,20.0]
[1719927570181,6.6415,150.57,150.44,20.0]
[1719927570481,6.6411,150.58,150.45,100.0]
[1719927570779,6.6411,150.58,150.46,35.7144]
[1719927571357,6.90560839,150.6,150.46,35.7144]
[1719927571557,6.6415,150.57,150.46,35.7144]
[1719927571983,6.90560839,150.6,150.48,100.0]
[1719927572273,53.3002,150.65,150.48,100.0]
[1719927572274,47.1653,150.65,150.5,100.0]
[1719927572479,6.6392,150.62,150.51,20.0]
[1719927573278,6.9019095,150.65,150.51,20.0]
[1719927573488,6.6391,150.63,150.51,20.0]
[1719927574162,6.9019095,150.65,150.53,6.4214]
[1719927574359,60.4426,150.69,150.54,20.0]
[1719927574557,6.6373,150.67,150.54,20.0]
[1719927574761,6.6375,150.66,150.54,20.0]
[1719927574981,6.638,150.65,150.54,20.0]
[1719927575180,16.5932,150.67,150.54,20.0]
[1719927575358,6.6395,150.62,150.53,6.4214]
[1719927575557,6.6388,150.63,150.53,6.4214]
[1719927576489,6.6383,150.65,150.53,6.4214]
[1719927576675,23.49384797,150.68,150.53,6.4214]
[1719927577178,6.6376,150.66,150.53,6.4214]
[1719927577379,23.49384797,150.68,150.54,20.0]
[1719927577958,6.6382,150.65,150.54,20.0]
[1719927578154,6.6375,150.66,150.55,1.32770496]
[1719927578379,6.90194797,150.68,150.57,15.8781]
[1719927578571,6.6364,150.69,150.58,21.32733692]
[1719927578775,6.6364,150.69,150.59,6.5691]
[1719927578966,6.9003862,150.72,150.6,120.0]
[1719927579174,16.5823,150.77,150.61,15.8011]
[1719927579175,6.6353,150.71,150.61,15.8011]
[1719927579491,6.6353,150.71,150.62,20.0]
[1719927579492,6.6356,150.71,150.62,20.0]
[1719927579780,23.48481461,150.75,150.61,15.8011]
[1719927579989,16.5867,150.73,150.62,20.0]
[1719927580158,6.6357,150.7,150.62,20.0]
[1719927580358,6.90071461,150.75,150.62,20.0]
[1719927580584,6.6349,150.72,150.62,20.0]
[1719927581590,6.6342,150.74,150.62,20.0]
[1719927582395,6.6342,150.74,150.63,6.4544]
[1719927582686,6.6342,150.74,150.64,1.32686158]
[1719927582895,6.6342,150.74,150.65,1.32686213]
[1719927583193,6.89542782,150.76,150.65,101.32686213]
[1719927583486,6.89542782,150.76,150.67,15.8567]
[1719927583791,6.6339,150.74,150.67,15.8567]
[1719927584272,6.6345,150.73,150.67,15.8567]
[1719927584698,6.6349,150.72,150.67,15.8567]
[1719927584893,6.6342,150.74,150.67,15.8567]
[1719927585095,70.4984,150.8,150.67,15.8567]
[1719927585096,53.9186,150.8,150.67,15.8567]
[1719927585262,6.6343,150.74,150.67,15.8567]
[1719927585462,6.89982018,150.78,150.67,15.8567]
[1719927585871,6.6339,150.74,150.67,15.8567]
[1719927586088,6.6336,150.75,150.67,15.8567]
[1719927586391,6.6335,150.75,150.67,15.8567]
[1719927586690,6.89982018,150.78,150.67,15.8567]
[1719927586997,13.53232018,150.78,150.68,6.2615]